[Event "48th Continental Open"]
[Site "Sturbridge, MA"]
[Date "2018.08.16"]
[Round "1.5"]
[White "Kavi, Nithin"]
[Black "Matsenko, Sergei"]
[Result "0-1"]
[ECO "D02"]
[WhiteElo "1995"]
[BlackElo "2533"]
[PlyCount "108"]
[EventDate "2018.08.??"]
[EventType "swiss"]
[EventRounds "9"]
[EventCountry "USA"]
[TimeControl "6000+10"]
[WhiteClock "0:12:04"]
[BlackClock "1:39:47"]

1. Nf3 {[%emt 0:09:40]} d5 2. d4 {[%emt 0:00:00]} Nf6 {[%emt 0:10:04]} 3. c4 {
[%emt 0:00:00]} c6 {[%emt 0:00:00]} 4. Qc2 {[%emt 0:00:00]} g6 {[%emt 0:00:00]}
5. Bf4 {[%emt 0:00:00]} Bg7 {[%emt 0:00:00]} 6. e3 {[%emt 0:00:00]} O-O {
[%emt 0:00:00]} 7. Nc3 {[%emt 0:00:00]} Be6 {[%emt 0:00:00]} 8. Qb3 {[%emt 0:
05:55]} Qb6 {[%emt 0:00:00]} 9. c5 {[%emt 0:10:14]} Qxb3 {[%emt 0:00:00]} 10.
axb3 {[%emt 0:00:00]} Nbd7 {[%emt 0:00:00]} 11. h3 {[%emt 0:00:00]} Ne4 {
[%emt 0:00:00]} 12. b4 {[%emt 0:00:00]} a6 {[%emt 0:00:00]} 13. Bd3 {[%emt 0:
00:00]} Nxc3 {[%emt 0:00:00]} 14. bxc3 {[%emt 0:00:00]} f6 {[%emt 0:00:00]} 15.
Nd2 {[%emt 0:00:00]} Bf7 {[%emt 0:00:00]} 16. Nb3 {[%emt 0:00:00]} e5 {[%emt 0:
00:00]} 17. Bh2 {[%emt 0:00:00]} Rfe8 {[%emt 0:06:27]} 18. Na5 {[%emt 0:06:13]}
Ra7 {[%emt 0:00:00]} 19. O-O {[%emt 0:00:00]} f5 {[%emt 0:00:00]} 20. Rfe1 {
[%emt 0:16:10]} Be6 {[%emt 0:00:00]} 21. Rad1 {[%emt 0:13:23]} e4 {[%emt 0:00:
00]} 22. Be2 {[%emt 0:00:00]} Nf6 {[%emt 0:00:00]} 23. Bc7 {[%emt 0:10:35]} Re7
{[%emt 0:00:00]} 24. Bh2 {[%emt 0:00:00]} Ra8 {[%emt 0:00:00]} 25. Rb1 {
[%emt 0:10:00]} Rd7 {[%emt 0:00:00]} 26. Rec1 {[%emt 0:00:00]} g5 {[%emt 0:00:
00]} 27. Be5 {[%emt 0:14:30]} Kf7 {[%emt 0:00:00]} 28. c4 {[%emt 0:00:00]} Kg6
{[%emt 0:00:00]} 29. Kh2 {[%emt 0:00:00]} Ne8 {[%emt 0:00:00]} 30. Bxg7 {
[%emt 0:00:00]} Rxg7 {[%emt 0:00:00]} 31. cxd5 {[%emt 0:00:00]} Bxd5 {[%emt 0:
00:00]} 32. Nc4 {[%emt 0:01:44]} Bxc4 {[%emt 0:00:00]} 33. Bxc4 {[%emt 0:00:00]
} Nf6 {[%emt 0:00:00]} 34. Rd1 {[%emt 0:00:00]} Rd8 {[%emt 0:00:00]} 35. Rd2 {
[%emt 0:03:27]} h5 {[%emt 0:00:00]} 36. Rbd1 {[%emt 0:00:00]} h4 {[%emt 0:00:
00]} 37. d5 {[%emt 0:03:08]} cxd5 {[%emt 0:00:00]} 38. Rd4 {[%emt 0:00:00]}
Rgd7 {[%emt 0:00:00]} 39. Bb3 {[%emt 0:00:00]} Kf7 {[%emt 0:00:00]} 40. b5 {
[%emt 0:00:00]} axb5 {[%emt 0:00:00]} 41. Rb4 {[%emt 0:00:00]} Ke6 {[%emt 0:00:
00]} 42. Rxb5 {[%emt 0:00:00]} Rc8 {[%emt 0:00:00]} 43. Ra1 {[%emt 0:00:00]}
Ke5 {[%emt 0:00:00]} 44. Ra4 {[%emt 0:00:00]} f4 {[%emt 0:00:00]} 45. Rab4 {
[%emt 0:00:00]} fxe3 {[%emt 0:00:00]} 46. fxe3 {[%emt 0:00:00]} g4 {[%emt 0:00:
00]} 47. Bd1 {[%emt 0:00:00]} g3+ {[%emt 0:00:00]} 48. Kg1 {[%emt 0:00:00]}
Rcc7 {[%emt 0:00:00]} 49. Ra4 {[%emt 0:00:00]} Rf7 {[%emt 0:00:00]} 50. Ra8 {
[%emt 0:00:00]} b6 {[%emt 0:00:00]} 51. Rxb6 {[%emt 0:00:00]} Rxc5 {[%emt 0:00:
00]} 52. Rb1 {[%emt 0:00:00]} Rc3 {[%emt 0:00:00]} 53. Rh8 {[%emt 0:00:00]}
Rxe3 {[%emt 0:00:00]} 54. Rxh4 {[%emt 0:00:00]} Re1# {[%emt 0:00:00]} 0-1

[Event "48th Continental Open"]
[Site "Sturbridge, MA"]
[Date "2018.08.16"]
[Round "1.6"]
[White "Gorovets, Andrey"]
[Black "Poliannikov, Danila"]
[Result "1-0"]
[ECO "A45"]
[WhiteElo "2495"]
[BlackElo "1994"]
[PlyCount "79"]
[EventDate "2018.08.??"]
[EventType "swiss"]
[EventRounds "9"]
[EventCountry "USA"]
[TimeControl "6000+10"]
[WhiteClock "0:04:36"]
[BlackClock "0:34:33"]

1. d4 {[%emt 0:09:40]} Nf6 {[%emt 0:09:51]} 2. Bf4 {[%emt 0:00:00]} d6 {
[%emt 0:00:00]} 3. Nc3 {[%emt 0:00:00]} g6 {[%emt 0:00:00]} 4. e4 {[%emt 0:00:
00]} Bg7 {[%emt 0:00:00]} 5. Qd2 {[%emt 0:00:00]} O-O {[%emt 0:00:00]} 6. Nf3 {
[%emt 0:00:00]} c5 {[%emt 0:00:00]} 7. dxc5 {[%emt 0:10:07]} dxc5 {[%emt 0:00:
00]} 8. O-O-O {[%emt 0:00:00]} Nc6 {[%emt 0:00:00]} 9. Qxd8 {[%emt 0:01:36]}
Rxd8 {[%emt 0:00:00]} 10. Rxd8+ {[%emt 0:00:05]} Nxd8 {[%emt 0:00:00]} 11. h3 {
[%emt 0:07:16]} Be6 {[%emt 0:12:34]} 12. Ng5 {[%emt 0:07:26]} Bd7 {[%emt 0:22:
20]} 13. Be3 {[%emt 0:00:42]} b6 {[%emt 0:04:12]} 14. e5 {[%emt 0:02:33]} Ne8 {
[%emt 0:00:00]} 15. f4 {[%emt 0:00:00]} Ne6 {[%emt 0:01:56]} 16. Nxe6 {[%emt 0:
03:17]} Bxe6 {[%emt 0:00:09]} 17. Be2 {[%emt 0:12:56]} Rd8 {[%emt 0:00:00]} 18.
Nb5 {[%emt 0:08:46]} a6 {[%emt 0:06:29]} 19. Nc3 {[%emt 0:00:00]} Nc7 {[%emt 0:
00:00]} 20. a4 {[%emt 0:06:13]} a5 {[%emt 0:00:00]} 21. Nb1 {[%emt 0:06:36]}
Nd5 {[%emt 0:19:49]} 22. Rd1 {[%emt 0:00:00]} Rd7 {[%emt 0:00:00]} 23. Bd2 {
[%emt 0:00:00]} g5 {[%emt 0:00:00]} 24. Bb5 {[%emt 0:08:44]} Rd8 {[%emt 0:00:
00]} 25. f5 {[%emt 0:00:00]} Bxf5 {[%emt 0:00:00]} 26. Bxg5 {[%emt 0:00:00]}
Bxc2 {[%emt 0:00:00]} 27. Rxd5 {[%emt 0:03:46]} Rxd5 {[%emt 0:00:00]} 28. Kxc2
{[%emt 0:00:00]} Rxe5 {[%emt 0:00:00]} 29. Bf4 {[%emt 0:00:00]} Rf5 {[%emt 0:
00:00]} 30. Bc7 {[%emt 0:05:12]} Rf2+ {[%emt 0:00:00]} 31. Kd3 {[%emt 0:00:00]}
Rxb2 {[%emt 0:00:00]} 32. Nd2 {[%emt 0:00:00]} Bh6 {[%emt 0:00:00]} 33. Nc4 {
[%emt 0:00:00]} Rxg2 {[%emt 0:00:00]} 34. Nxb6 {[%emt 0:08:57]} f5 {[%emt 0:00:
00]} 35. Nc4 {[%emt 0:00:00]} f4 {[%emt 0:00:00]} 36. Ke4 {[%emt 0:00:00]} Rf2
{[%emt 0:00:00]} 37. Bxa5 {[%emt 0:00:00]} Bg7 {[%emt 0:00:00]} 38. Bc7 {
[%emt 0:00:00]} f3 {[%emt 0:00:00]} 39. Ne5 {[%emt 0:00:00]} Ra2 {[%emt 0:00:
00]} 40. Bc4+ {[%emt 0:00:00]} 1-0

[Event "48th Continental Open"]
[Site "Sturbridge, MA"]
[Date "2018.08.16"]
[Round "1.8"]
[White "Mulyar, Michael"]
[Black "Fiedler, Brian"]
[Result "1-0"]
[ECO "E62"]
[WhiteElo "2374"]
[BlackElo "1978"]
[PlyCount "47"]
[EventDate "2018.08.??"]
[EventType "swiss"]
[EventRounds "9"]
[EventCountry "USA"]
[TimeControl "6000+10"]
[WhiteClock "0:48:13"]
[BlackClock "0:21:58"]

1. d4 {[%emt 0:09:40]} Nf6 {[%emt 0:09:52]} 2. Nf3 {[%emt 0:00:00]} g6 {
[%emt 0:00:00]} 3. c4 {[%emt 0:00:00]} Bg7 {[%emt 0:00:00]} 4. g3 {[%emt 0:00:
00]} O-O {[%emt 0:00:00]} 5. Bg2 {[%emt 0:00:00]} d6 {[%emt 0:00:00]} 6. O-O {
[%emt 0:00:00]} Nc6 {[%emt 0:00:00]} 7. Nc3 {[%emt 0:00:00]} Bg4 {[%emt 0:00:
00]} 8. d5 {[%emt 0:00:00]} Na5 {[%emt 0:00:00]} 9. Qd3 {[%emt 0:11:06]} c5 {
[%emt 0:00:00]} 10. h3 {[%emt 0:01:12]} Bxf3 {[%emt 0:05:41]} 11. exf3 {
[%emt 0:00:00]} Nd7 {[%emt 0:01:33]} 12. f4 {[%emt 0:02:37]} a6 {[%emt 0:01:56]
} 13. Rb1 {[%emt 0:00:55]} Rb8 {[%emt 0:06:47]} 14. b3 {[%emt 0:00:01]} Qc7 {
[%emt 0:08:51]} 15. a4 {[%emt 0:02:20]} b6 {[%emt 0:04:13]} 16. Bd2 {[%emt 0:
01:26]} Nb7 {[%emt 0:06:29]} 17. f5 {[%emt 0:02:05]} Rbe8 {[%emt 0:02:51]} 18.
Rbe1 {[%emt 0:03:43]} gxf5 {[%emt 0:07:05]} 19. Qxf5 {[%emt 0:00:10]} e6 {
[%emt 0:00:06]} 20. Qh5 {[%emt 0:05:47]} Nd8 {[%emt 0:12:22]} 21. dxe6 {
[%emt 0:08:38]} fxe6 {[%emt 0:03:31]} 22. Nd5 {[%emt 0:00:29]} Qa7 {[%emt 0:02:
13]} 23. Bg5 {[%emt 0:02:04]} Nc6 {[%emt 0:08:32]} 24. Be4 {[%emt 0:03:34]} 1-0

[Event "48th Continental Open"]
[Site "Sturbridge, MA"]
[Date "2018.08.16"]
[Round "2.5"]
[White "Matsenko, Sergei"]
[Black "Graif, William"]
[Result "1/2-1/2"]
[ECO "E48"]
[WhiteElo "2533"]
[BlackElo "2123"]
[PlyCount "68"]
[EventDate "2018.08.??"]
[EventType "swiss"]
[EventRounds "9"]
[EventCountry "USA"]
[TimeControl "6000+10"]
[WhiteClock "0:43:56"]
[BlackClock "0:00:45"]

1. d4 {[%emt 0:00:10]} Nf6 {[%emt 0:00:21]} 2. c4 {[%emt 0:00:11]} e6 {[%emt 0:
00:11]} 3. Nc3 {[%emt 0:01:02]} Bb4 {[%emt 0:00:11]} 4. e3 {[%emt 0:01:47]} O-O
{[%emt 0:00:12]} 5. Bd3 {[%emt 0:00:11]} d5 {[%emt 0:00:11]} 6. Nge2 {[%emt 0:
00:11]} c5 {[%emt 0:09:22]} 7. cxd5 {[%emt 0:00:10]} cxd4 {[%emt 0:00:34]} 8.
exd4 {[%emt 0:00:11]} Nxd5 {[%emt 0:01:49]} 9. O-O {[%emt 0:00:11]} Nc6 {
[%emt 0:05:47]} 10. Nxd5 {[%emt 0:00:11]} Qxd5 {[%emt 0:18:37]} 11. Qc2 {
[%emt 0:00:44]} h6 {[%emt 0:06:40]} 12. Rd1 {[%emt 0:00:34]} Bd6 {[%emt 0:06:
42]} 13. a3 {[%emt 0:12:59]} Rd8 {[%emt 0:21:47]} 14. Be4 {[%emt 0:00:13]} Qh5
{[%emt 0:00:11]} 15. h3 {[%emt 0:00:10]} Bd7 {[%emt 0:03:31]} 16. d5 {[%emt 0:
20:30]} Na5 {[%emt 0:00:11]} 17. Bf3 {[%emt 0:05:23]} Qh4 {[%emt 0:07:32]} 18.
Qc3 {[%emt 0:09:43]} Qa4 {[%emt 0:00:11]} 19. Rd4 {[%emt 0:00:11]} Qb5 {
[%emt 0:05:26]} 20. a4 {[%emt 0:04:36]} Qc5 {[%emt 0:08:01]} 21. Qd3 {[%emt 0:
00:10]} e5 {[%emt 0:00:10]} 22. b4 {[%emt 0:00:11]} Qc7 {[%emt 0:00:00]} 23.
Rh4 {[%emt 0:00:11]} Be7 {[%emt 0:00:00]} 24. Re4 {[%emt 0:00:11]} f5 {[%emt 0:
00:00]} 25. bxa5 {[%emt 0:00:10]} fxe4 {[%emt 0:00:00]} 26. Qxe4 {[%emt 0:00:
11]} Qxa5 {[%emt 0:00:00]} 27. Bxh6 {[%emt 0:00:11]} Qa6 {[%emt 0:06:17]} 28.
Be3 {[%emt 0:00:11]} Rac8 {[%emt 0:00:11]} 29. d6 {[%emt 0:00:10]} Bc6 30. Qxe5
Bxd6 31. Qe6+ Kh8 32. Bd4 Bf8 33. Qh6+ Kg8 34. Qe6+ Kh8 1/2-1/2

[Event "48th Continental Open"]
[Site "Sturbridge, MA"]
[Date "2018.08.16"]
[Round "2.7"]
[White "Chen, Jacob"]
[Black "Mulyar, Michael"]
[Result "0-1"]
[ECO "C44"]
[WhiteElo "2084"]
[BlackElo "2374"]
[PlyCount "118"]
[EventDate "2018.08.??"]
[EventType "swiss"]
[EventRounds "9"]
[EventCountry "USA"]
[TimeControl "6000+10"]
[WhiteClock "0:03:34"]
[BlackClock "0:43:59"]

1. e4 {[%emt 0:00:10]} e5 {[%emt 0:00:28]} 2. Nf3 {[%emt 0:00:21]} Nc6 {
[%emt 0:00:19]} 3. c3 {[%emt 0:00:18]} Nf6 {[%emt 0:03:01]} 4. d4 {[%emt 0:01:
25]} Nxe4 {[%emt 0:00:21]} 5. d5 {[%emt 0:00:11]} Ne7 {[%emt 0:00:21]} 6. Nxe5
{[%emt 0:00:30]} Ng6 {[%emt 0:00:19]} 7. Qd4 {[%emt 0:01:05]} Qe7 {[%emt 0:02:
45]} 8. Qxe4 {[%emt 0:01:27]} Qxe5 {[%emt 0:00:20]} 9. Qxe5+ {[%emt 0:10:03]}
Nxe5 {[%emt 0:00:16]} 10. Bf4 {[%emt 0:01:12]} d6 {[%emt 0:00:19]} 11. Na3 {
[%emt 0:02:04]} Bf5 {[%emt 0:00:35]} 12. O-O-O {[%emt 0:03:01]} O-O-O {[%emt 0:
00:41]} 13. Nc4 {[%emt 0:04:30]} Nxc4 {[%emt 0:05:15]} 14. Bxc4 {[%emt 0:00:56]
} Be7 {[%emt 0:00:15]} 15. Bd3 {[%emt 0:02:22]} Bxd3 {[%emt 0:00:33]} 16. Rxd3
{[%emt 0:00:11]} Bf6 {[%emt 0:00:16]} 17. Re1 {[%emt 0:01:22]} Rde8 {[%emt 0:
01:26]} 18. Rxe8+ {[%emt 0:01:47]} Rxe8 {[%emt 0:00:16]} 19. Re3 {[%emt 0:00:
14]} Be5 {[%emt 0:07:59]} 20. Bxe5 {[%emt 0:01:29]} dxe5 {[%emt 0:00:41]} 21.
c4 {[%emt 0:02:20]} Kd7 {[%emt 0:00:19]} 22. Kd2 {[%emt 0:02:13]} Kd6 {[%emt 0:
00:28]} 23. Kc3 {[%emt 0:06:57]} f5 {[%emt 0:01:34]} 24. b3 {[%emt 0:10:03]} a6
{[%emt 0:01:00]} 25. a3 {[%emt 0:15:26]} g6 {[%emt 0:01:19]} 26. Rh3 {[%emt 0:
02:52]} Re7 {[%emt 0:01:30]} 27. Rh6 {[%emt 0:01:00]} e4 {[%emt 0:00:39]} 28.
Kd4 {[%emt 0:00:47]} c5+ {[%emt 0:01:05]} 29. Ke3 {[%emt 0:02:12]} Ke5 {
[%emt 0:00:29]} 30. Rh4 {[%emt 0:11:34]} b5 {[%emt 0:01:43]} 31. f4+ {[%emt 0:
04:56]} Kf6 {[%emt 0:00:51]} 32. Kd2 {[%emt 0:05:13]} bxc4 {[%emt 0:03:10]} 33.
bxc4 {[%emt 0:00:10]} Rb7 {[%emt 0:00:20]} 34. Kc2 {[%emt 0:00:50]} e3 {
[%emt 0:02:21]} 35. Rh3 {[%emt 0:01:08]} Re7 {[%emt 0:00:53]} 36. Kd1 {[%emt 0:
00:23]} Re4 {[%emt 0:00:20]} 37. Ke2 {[%emt 0:01:58]} Rxc4 {[%emt 0:02:39]} 38.
Rxe3 {[%emt 0:00:48]} Rxf4 {[%emt 0:01:38]} 39. Re6+ {[%emt 0:00:57]} Kg5 {
[%emt 0:00:18]} 40. Rxa6 {[%emt 0:00:02]} Re4+ {[%emt 0:00:25]} 41. Kf3 {
[%emt 0:00:00]} Rd4 {[%emt 0:00:21]} 42. d6 {[%emt 0:00:00]} Kf6 {[%emt 0:01:
32]} 43. Rc6 {[%emt 0:00:00]} Rc4 {[%emt 0:07:36]} 44. d7+ {[%emt 0:00:51]} Ke7
{[%emt 0:00:14]} 45. Rd6 {[%emt 0:00:00]} Kd8 {[%emt 0:00:15]} 46. Ke3 {
[%emt 0:00:00]} Rc3+ {[%emt 0:02:59]} 47. Rd3 {[%emt 0:00:00]} Rxd3+ {[%emt 0:
00:14]} 48. Kxd3 {[%emt 0:00:05]} Kxd7 {[%emt 0:00:14]} 49. Kc4 {[%emt 0:00:00]
} Kc6 {[%emt 0:00:14]} 50. h4 {[%emt 0:00:00]} h6 {[%emt 0:00:15]} 51. a4 {
[%emt 0:00:00]} g5 {[%emt 0:00:14]} 52. hxg5 {[%emt 0:00:00]} hxg5 {[%emt 0:00:
14]} 53. g3 {[%emt 0:00:00]} f4 {[%emt 0:00:41]} 54. gxf4 {[%emt 0:00:00]} gxf4
{[%emt 0:00:14]} 55. a5 {[%emt 0:00:00]} f3 {[%emt 0:00:18]} 56. Kd3 {[%emt 0:
00:00]} Kb5 {[%emt 0:00:18]} 57. Ke3 {[%emt 0:00:00]} Kxa5 {[%emt 0:00:14]} 58.
Kxf3 {[%emt 0:00:00]} Kb4 {[%emt 0:00:13]} 59. Ke3 {[%emt 0:00:00]} Kc3 {
[%emt 0:00:14]} 0-1

[Event "48th Continental Open"]
[Site "Sturbridge, MA"]
[Date "2018.08.16"]
[Round "2.10"]
[White "Kim, Yoon-Young"]
[Black "Riddell, Connor"]
[Result "1-0"]
[ECO "A56"]
[WhiteElo "2360"]
[BlackElo "1716"]
[PlyCount "43"]
[EventDate "2018.08.??"]
[EventType "swiss"]
[EventRounds "9"]
[EventCountry "USA"]
[TimeControl "6000+10"]
[WhiteClock "1:05:34"]
[BlackClock "1:24:16"]

1. d4 {[%emt 0:00:10]} Nf6 {[%emt 0:00:25]} 2. c4 {[%emt 0:00:28]} c5 {[%emt 0:
00:15]} 3. d5 {[%emt 0:01:11]} e5 {[%emt 0:00:14]} 4. Nc3 {[%emt 0:00:23]} d6 {
[%emt 0:00:29]} 5. g3 {[%emt 0:00:11]} Be7 {[%emt 0:00:13]} 6. Bg2 {[%emt 0:00:
31]} O-O {[%emt 0:00:14]} 7. e4 {[%emt 0:00:38]} Ne8 {[%emt 0:00:14]} 8. h4 {
[%emt 0:04:40]} f5 {[%emt 0:03:09]} 9. exf5 {[%emt 0:03:13]} Bxf5 {[%emt 0:00:
54]} 10. Bh3 {[%emt 0:03:01]} g6 {[%emt 0:04:00]} 11. h5 {[%emt 0:06:06]} Bg5 {
[%emt 0:00:39]} 12. hxg6 {[%emt 0:01:40]} hxg6 {[%emt 0:00:19]} 13. Bxf5 {
[%emt 0:01:05]} Rxf5 {[%emt 0:00:22]} 14. Ne4 {[%emt 0:05:42]} Bxc1 {[%emt 0:
03:08]} 15. Qxc1 {[%emt 0:00:34]} Qe7 {[%emt 0:00:17]} 16. Ne2 {[%emt 0:01:59]}
Nd7 {[%emt 0:01:20]} 17. g4 {[%emt 0:01:33]} Rf7 {[%emt 0:00:40]} 18. Qh6 {
[%emt 0:01:16]} Rg7 {[%emt 0:00:18]} 19. Ng5 {[%emt 0:01:11]} Kf8 {[%emt 0:01:
36]} 20. Qh8+ {[%emt 0:01:30]} Rg8 {[%emt 0:00:14]} 21. Ne6+ {[%emt 0:00:30]}
Kf7 {[%emt 0:00:24]} 22. Rh7+ {[%emt 0:00:34]} 1-0

[Event "48th Continental Open"]
[Site "Sturbridge, MA"]
[Date "2018.08.16"]
[Round "2.11"]
[White "Procyk, Marijan"]
[Black "Mishra, Abhimanyu"]
[Result "0-1"]
[ECO "D35"]
[WhiteElo "1940"]
[BlackElo "2166"]
[PlyCount "118"]
[EventDate "2018.08.??"]
[EventType "swiss"]
[EventRounds "9"]
[EventCountry "USA"]
[TimeControl "6000+10"]
[WhiteClock "0:08:12"]
[BlackClock "0:01:10"]

1. d4 {[%emt 0:00:10]} d5 2. c4 {[%emt 0:00:23]} e6 {[%emt 0:00:37]} 3. Nc3 {
[%emt 0:00:22]} Nf6 {[%emt 0:00:25]} 4. cxd5 {[%emt 0:01:08]} exd5 {[%emt 0:00:
13]} 5. Bg5 {[%emt 0:00:32]} c6 {[%emt 0:01:44]} 6. e3 {[%emt 0:03:49]} Be7 {
[%emt 0:00:16]} 7. Bd3 {[%emt 0:01:49]} Nbd7 {[%emt 0:00:54]} 8. Nf3 {[%emt 0:
01:03]} h6 {[%emt 0:02:07]} 9. Bh4 {[%emt 0:03:17]} Nh5 {[%emt 0:01:09]} 10.
Bg3 {[%emt 0:02:09]} Nxg3 {[%emt 0:07:35]} 11. hxg3 {[%emt 0:01:00]} Nb6 {
[%emt 0:06:15]} 12. Qc2 {[%emt 0:01:01]} Bd6 {[%emt 0:07:47]} 13. O-O-O {
[%emt 0:15:10]} Qc7 {[%emt 0:04:33]} 14. Kb1 {[%emt 0:00:52]} Bd7 {[%emt 0:08:
01]} 15. Rc1 {[%emt 0:02:22]} O-O-O {[%emt 0:07:06]} 16. Qb3 {[%emt 0:03:37]}
Be6 {[%emt 0:08:13]} 17. Nb5 {[%emt 0:01:39]} Qb8 {[%emt 0:00:41]} 18. Nxd6+ {
[%emt 0:01:06]} Qxd6 {[%emt 0:00:47]} 19. Ne5 {[%emt 0:02:15]} f6 {[%emt 0:02:
39]} 20. Ng6 {[%emt 0:01:05]} Rhe8 {[%emt 0:00:51]} 21. Nf4 {[%emt 0:00:26]}
Bf7 {[%emt 0:05:30]} 22. Rc2 {[%emt 0:06:02]} Kb8 {[%emt 0:10:02]} 23. Bg6 {
[%emt 0:01:32]} Bxg6 {[%emt 0:05:01]} 24. Nxg6 {[%emt 0:00:17]} Nc4 {[%emt 0:
01:40]} 25. Nf4 {[%emt 0:03:23]} Rd7 {[%emt 0:05:40]} 26. Rhc1 {[%emt 0:03:09]}
Rde7 {[%emt 0:02:40]} 27. Nd3 {[%emt 0:01:38]} Ka8 {[%emt 0:01:52]} 28. Nc5 {
[%emt 0:01:02]} f5 {[%emt 0:01:40]} 29. Qd3 {[%emt 0:02:32]} Qf6 {[%emt 0:01:
26]} 30. Rc3 {[%emt 0:00:44]} g5 {[%emt 0:01:53]} 31. b3 {[%emt 0:00:29]} Nd6 {
[%emt 0:01:55]} 32. Nxb7 {[%emt 0:02:50]} Rxb7 {[%emt 0:01:04]} 33. Rxc6 {
[%emt 0:00:27]} Qd8 {[%emt 0:01:06]} 34. Qa6 {[%emt 0:01:56]} Rb6 {[%emt 0:01:
18]} 35. Qa4 {[%emt 0:00:23]} Qd7 {[%emt 0:00:55]} 36. Rxb6 {[%emt 0:08:21]}
Qxa4 {[%emt 0:00:11]} 37. Rxd6 {[%emt 0:00:11]} Qa5 {[%emt 0:00:03]} 38. Rxh6 {
[%emt 0:00:44]} Qd2 {[%emt 0:00:39]} 39. Rc2 {[%emt 0:00:21]} Qd3 {[%emt 0:00:
01]} 40. Kb2 {[%emt 0:00:28]} f4 {[%emt 0:00:01]} 41. gxf4 {[%emt 0:01:25]}
gxf4 {[%emt 0:00:00]} 42. Rc3 {[%emt 0:01:01]} Qf1 {[%emt 0:00:00]} 43. Rc2 {
[%emt 0:01:12]} Qxg2 {[%emt 0:00:00]} 44. Rf6 {[%emt 0:00:48]} fxe3 {[%emt 0:
00:22]} 45. fxe3 {[%emt 0:00:16]} Qg5 {[%emt 0:00:22]} 46. Rf4 {[%emt 0:01:35]}
Rxe3 {[%emt 0:00:00]} 47. Rf8+ {[%emt 0:01:31]} Kb7 {[%emt 0:00:00]} 48. Rf7+ {
[%emt 0:03:01]} Re7 {[%emt 0:00:22]} 49. Rf3 {[%emt 0:00:27]} Qg4 {[%emt 0:00:
00]} 50. Rd3 {[%emt 0:00:17]} Re2 {[%emt 0:00:26]} 51. Rdd2 {[%emt 0:00:26]}
Rxd2 {[%emt 0:00:00]} 52. Rxd2 {[%emt 0:00:17]} Kc6 {[%emt 0:00:41]} 53. Kc3 {
[%emt 0:00:11]} Qg1 {[%emt 0:00:00]} 54. Kd3 {[%emt 0:00:48]} Kb5 {[%emt 0:00:
26]} 55. Kc3 {[%emt 0:02:22]} Qe3+ {[%emt 0:00:00]} 56. Kc2 {[%emt 0:00:11]}
Kb4 {[%emt 0:00:00]} 57. Rd3 {[%emt 0:03:09]} Qe4 {[%emt 0:00:00]} 58. a4 {
[%emt 0:00:21]} a5 {[%emt 0:00:00]} 59. Kd2 {[%emt 0:00:36]} Qxd3+ {[%emt 0:00:
00]} 0-1

[Event "48th Continental Open"]
[Site "Sturbridge, MA"]
[Date "2018.08.16"]
[Round "2.12"]
[White "Falcao, Wesley"]
[Black "Ramanathan, Suraj"]
[Result "1/2-1/2"]
[ECO "A15"]
[WhiteElo "2148"]
[BlackElo "1961"]
[PlyCount "62"]
[EventDate "2018.08.??"]
[EventType "swiss"]
[EventRounds "9"]
[EventCountry "USA"]
[TimeControl "6000+10"]
[WhiteClock "0:05:21"]
[BlackClock "0:37:31"]

1. c4 {[%emt 0:00:10]} Nf6 {[%emt 0:00:23]} 2. g3 {[%emt 0:00:38]} g6 {[%emt 0:
00:17]} 3. Bg2 {[%emt 0:00:16]} Bg7 {[%emt 0:00:13]} 4. Nc3 {[%emt 0:00:31]}
O-O {[%emt 0:00:15]} 5. Rb1 {[%emt 0:00:27]} d6 {[%emt 0:02:49]} 6. b4 {
[%emt 0:00:19]} e5 {[%emt 0:00:47]} 7. e3 {[%emt 0:01:00]} Re8 {[%emt 0:00:54]}
8. d3 {[%emt 0:01:03]} c6 {[%emt 0:00:46]} 9. b5 {[%emt 0:02:29]} d5 {[%emt 0:
01:48]} 10. bxc6 {[%emt 0:01:20]} bxc6 {[%emt 0:00:34]} 11. cxd5 {[%emt 0:03:
21]} cxd5 {[%emt 0:00:25]} 12. Nge2 {[%emt 0:01:53]} Be6 {[%emt 0:02:09]} 13.
O-O {[%emt 0:00:26]} Nc6 {[%emt 0:02:08]} 14. Qa4 {[%emt 0:01:32]} Qd7 {
[%emt 0:01:08]} 15. d4 {[%emt 0:04:37]} exd4 {[%emt 0:09:48]} 16. exd4 {
[%emt 0:00:11]} Bf5 {[%emt 0:00:13]} 17. Rb2 {[%emt 0:01:43]} Rac8 {[%emt 0:01:
45]} 18. Rd1 {[%emt 0:13:08]} Ne4 {[%emt 0:06:00]} 19. Nxe4 {[%emt 0:09:37]}
Bxe4 {[%emt 0:00:42]} 20. Be3 {[%emt 0:05:25]} Bxg2 {[%emt 0:02:23]} 21. Kxg2 {
[%emt 0:00:11]} Qe6 {[%emt 0:04:28]} 22. Rb3 {[%emt 0:17:11]} Qe4+ {[%emt 0:01:
03]} 23. f3 {[%emt 0:00:11]} Qc2 {[%emt 0:01:27]} 24. Rd2 {[%emt 0:05:44]} Qxd2
{[%emt 0:00:52]} 25. Bxd2 {[%emt 0:00:15]} Rxe2+ {[%emt 0:00:12]} 26. Kh3 {
[%emt 0:04:47]} Rxd2 {[%emt 0:03:22]} 27. Rc3 {[%emt 0:01:37]} Bxd4 {[%emt 0:
09:08]} 28. Rxc6 {[%emt 0:01:38]} Rb8 {[%emt 0:05:32]} 29. Rc2 {[%emt 0:15:54]}
Rxc2 {[%emt 0:04:16]} 30. Qxc2 {[%emt 0:00:11]} Rb2 {[%emt 0:00:45]} 31. Qa4 {
[%emt 0:02:04]} Rd2 {[%emt 0:01:17]} 1/2-1/2